bitfinex/quotes_BTCUSD_20250711
["timestamp","ask_amount","ask_price","bid_price","bid_amount"]
[1752223334237,0.12557655,117850.0,117840.0,0.1404]
[1752223336274,0.05771956,117850.0,117840.0,0.1404]
[1752223336793,0.03471956,117850.0,117840.0,0.1404]
[1752223338258,0.05711956,117850.0,117840.0,0.1404]
[1752223342202,0.05511956,117850.0,117840.0,0.13828]
[1752223346355,0.03271956,117850.0,117840.0,0.13828]
[1752223349044,0.34491956,117860.0,117840.0,0.13828]
[1752223349270,0.35437074,117860.0,117840.0,0.13828]
[1752223349646,0.0223,117850.0,117840.0,0.13828]
[1752223350524,0.0223,117850.0,117840.0,0.13528]
[1752223351063,0.0223,117850.0,117840.0,0.13628]
[1752223351266,0.0223,117850.0,117840.0,0.13528]
[1752223351677,0.0223,117850.0,117840.0,0.13628]
[1752223354850,0.37487074,117860.0,117840.0,0.13628]
[1752223355929,0.37487074,117860.0,117840.0,0.13528]
[1752223356130,0.37487074,117860.0,117840.0,0.13628]
[1752223357748,0.0213,117850.0,117840.0,0.13628]
[1752223358543,0.35337074,117860.0,117840.0,0.13628]
[1752223358991,0.35337074,117860.0,117830.0,0.08542993]
[1752223358992,0.0439,117850.0,117830.0,0.08542993]
[1752223359223,0.0439,117850.0,117840.0,0.13492]
[1752223359464,0.0439,117850.0,117840.0,0.13592]
[1752223360549,0.0213,117850.0,117840.0,0.13492]
[1752223361024,0.0213,117850.0,117840.0,0.13592]
[1752223361257,0.0213,117850.0,117840.0,0.13492]
[1752223361495,0.0213,117850.0,117840.0,0.13592]
[1752223362736,0.002,117840.0,117830.0,0.08542993]
[1752223362939,0.002,117840.0,117830.0,0.10632993]
[1752223363852,0.002,117840.0,117830.0,0.10832993]
[1752223364139,0.002,117840.0,117830.0,0.24320993]
[1752223366372,0.002,117840.0,117830.0,0.24420993]
[1752223366727,0.0459,117840.0,117830.0,0.003]
[1752223366927,0.03212263,117840.0,117830.0,0.003]
[1752223367134,0.02194817,117840.0,117830.0,0.15361194]
[1752223369822,0.02194817,117840.0,117830.0,0.01881194]
[1752223370049,0.02194817,117840.0,117830.0,0.15357194]
[1752223370267,0.04404817,117840.0,117830.0,0.15357194]
[1752223371978,0.04404817,117840.0,117830.0,0.01881194]
[1752223372622,0.04404817,117840.0,117830.0,0.15357194]
[1752223374563,0.34,117850.0,117830.0,0.17996]
[1752223374797,0.00945118,117860.0,117840.0,0.17744]
[1752223375011,0.00945118,117860.0,117840.0,0.19537325]
[1752223375238,0.10506706,117880.0,117850.0,0.0445]
[1752223375512,0.10506706,117880.0,117850.0,0.06030244]
[1752223375752,0.34,117870.0,117850.0,0.06242378]
[1752223376774,0.34,117870.0,117850.0,0.06030244]
[1752223376976,0.341,117870.0,117850.0,0.06030244]
[1752223377202,0.3318272,117870.0,117850.0,0.06030244]
[1752223377593,0.3764272,117870.0,117850.0,0.01580244]
[1752223378086,0.3764272,117870.0,117850.0,0.10123237]
[1752223379117,0.3764272,117870.0,117860.0,0.13536]
[1752223379350,0.3764272,117870.0,117860.0,0.15116244]
[1752223379975,0.3754272,117870.0,117860.0,0.15116244]
[1752223380208,0.3744272,117870.0,117860.0,0.15116244]
[1752223380526,0.3794272,117870.0,117860.0,0.15116244]
[1752223380708,0.3794272,117870.0,117860.0,0.15112244]
[1752223387613,0.3794272,117870.0,117860.0,0.15110262]
[1752223393152,0.46485713,117870.0,117860.0,0.01578262]
[1752223393376,0.48788125,117870.0,117860.0,0.01578262]
[1752223393594,0.57270797,117870.0,117860.0,0.01578262]
[1752223394675,0.63957098,117870.0,117860.0,0.01578262]
[1752223395606,0.50485098,117870.0,117860.0,0.01578262]
[1752223395843,0.63957098,117870.0,117860.0,0.01578262]
[1752223396524,1.03957098,117870.0,117860.0,0.01578262]
[1752223397618,1.03667098,117870.0,117860.0,0.01577954]
[1752223397819,1.02649738,117870.0,117860.0,0.02169689]
[1752223398020,1.04346414,117870.0,117860.0,0.02169689]
[1752223398222,1.03498065,117870.0,117860.0,0.02169689]
[1752223398451,1.02649738,117870.0,117860.0,0.02169689]
[1752223401316,0.3918066,117870.0,117860.0,0.02169689]
[1752223401515,0.005,117870.0,117860.0,0.08230331]
[1752223402435,0.005,117870.0,117860.0,0.12690331]
[1752223403585,0.005,117870.0,117860.0,0.06629689]
[1752223404503,0.39263635,117880.0,117860.0,0.06629689]
[1752223404635,0.39263635,117880.0,117870.0,0.06062989]
[1752223404996,0.39263635,117880.0,117870.0,0.08232678]
[1752223405118,0.39263635,117880.0,117870.0,0.07640943]
[1752223405969,0.39363635,117880.0,117870.0,0.07640943]
[1752223406149,0.43643635,117880.0,117870.0,0.07640943]
[1752223406818,0.43643635,117880.0,117870.0,0.01577954]
[1752223407841,0.42626375,117880.0,117870.0,0.01577954]
[1752223408058,0.38346375,117880.0,117870.0,0.01577954]
[1752223408272,0.04346375,117880.0,117870.0,0.25580943]
[1752223409580,0.04346375,117880.0,117870.0,0.34123936]
[1752223409776,0.04246375,117880.0,117870.0,0.34123936]
[1752223409978,0.02474446,117880.0,117870.0,0.34123936]
[1752223410186,0.02474446,117880.0,117870.0,0.28360947]
[1752223410391,0.02474446,117880.0,117870.0,0.3441831]
[1752223410575,0.02474446,117880.0,117870.0,0.28360947]
[1752223411104,0.01457344,117880.0,117870.0,0.28360947]
[1752223411299,0.01457344,117880.0,117870.0,0.34516926]
[1752223411641,0.01457344,117880.0,117870.0,0.34416926]
[1752223411847,0.0314745,117880.0,117870.0,0.34516926]
[1752223412047,0.01457344,117880.0,117870.0,0.34216926]
[1752223412251,0.01457344,117880.0,117870.0,0.34416926]
[1752223416247,0.01457344,117880.0,117870.0,0.35008061]
[1752223417871,0.01765529,117890.0,117870.0,0.35008061]
[1752223418218,0.0171046,117890.0,117870.0,0.35008061]
[1752223418429,0.0444,117900.0,117870.0,0.35007917]
[1752223419060,0.0444,117900.0,117870.0,0.34807917]
[1752223419489,0.0444,117900.0,117870.0,0.35007917]
[1752223419715,0.0444,117900.0,117870.0,0.34807917]
[1752223420112,0.0444,117900.0,117870.0,0.35007917]
[1752223420304,0.0444,117900.0,117870.0,0.32838972]
[1752223420555,0.0444,117900.0,117870.0,0.35005744]
[1752223420912,0.0444,117900.0,117870.0,0.34905744]
[1752223421438,0.06212036,117900.0,117870.0,0.34905744]
[1752223422427,0.06212036,117900.0,117880.0,0.043]
[1752223422628,0.06212036,117900.0,117890.0,0.14064]
[1752223422914,0.06212036,117900.0,117890.0,0.16230772]
[1752223424264,0.06312036,117900.0,117890.0,0.16230772]
[1752223425225,0.06412036,117900.0,117890.0,0.16230772]
[1752223426274,0.06412036,117900.0,117890.0,0.15639859]
[1752223426475,0.06412036,117900.0,117890.0,0.15639922]
[1752223428387,0.01972036,117900.0,117890.0,0.17789922]
[1752223428616,0.002,117900.0,117890.0,0.19829922]
[1752223428821,0.002,117900.0,117890.0,0.25885901]
[1752223429024,0.0002,117910.0,117900.0,0.0418]
[1752223429233,0.0002,117910.0,117900.0,0.05755922]
[1752223430407,0.0002,117910.0,117900.0,0.05855922]
[1752223431612,0.0002,117910.0,117900.0,0.06055922]
[1752223431810,0.01765183,117910.0,117900.0,0.06055922]
[1752223432022,0.0002,117910.0,117900.0,0.06055922]
[1752223435059,0.01780722,117910.0,117900.0,0.06055922]
[1752223437140,0.01780722,117910.0,117900.0,0.14598915]
[1752223437321,0.01780722,117910.0,117900.0,0.14810959]
[1752223437525,0.01780722,117910.0,117900.0,0.14598915]
[1752223437727,0.0002,117910.0,117900.0,0.14598915]
[1752223440337,0.0002,117910.0,117900.0,0.14810959]
[1752223440946,0.06785699,117930.0,117910.0,0.043]
[1752223441156,0.06785699,117930.0,117920.0,0.29072]
[1752223441385,0.06785699,117930.0,117920.0,0.30647922]
[1752223442352,0.44538976,117930.0,117920.0,0.30647922]
[1752223443209,0.44738976,117930.0,117920.0,0.30647922]
[1752223443874,0.35903277,117930.0,117920.0,0.30647922]
[1752223444202,0.35903277,117930.0,117920.0,0.34837922]
[1752223444602,0.35903277,117930.0,117920.0,0.03755065]
[1752223444810,0.04752097,117950.0,117930.0,0.0214]
[1752223445243,0.04752097,117950.0,117920.0,0.10682993]
[1752223445683,0.40479065,117950.0,117930.0,0.30536]
[1752223446098,0.40479065,117950.0,117930.0,0.30636]
[1752223446301,0.40036968,117950.0,117930.0,0.30636]
[1752223446711,0.06036968,117950.0,117930.0,0.30636]
[1752223447123,0.06036968,117950.0,117930.0,0.30736]
[1752223452331,0.06036968,117950.0,117930.0,0.43488993]
[1752223452332,0.35726968,117950.0,117930.0,0.43488993]
[1752223456572,0.35726968,117950.0,117930.0,0.45059048]
[1752223458642,0.34710383,117950.0,117930.0,0.45059048]
[1752223458976,0.00710383,117950.0,117930.0,0.45059048]
[1752223459183,0.3822,117960.0,117930.0,0.45059048]
[1752223459788,0.39939408,117960.0,117930.0,0.45059048]
[1752223459975,0.39939408,117960.0,117930.0,0.44959048]
[1752223460347,0.39939408,117960.0,117940.0,0.0218]
[1752223460582,0.39939408,117960.0,117950.0,0.30416]
[1752223460759,0.39939408,117960.0,117950.0,0.31986055]
[1752223461540,0.37859408,117960.0,117950.0,0.31986055]
[1752223461911,0.38059408,117960.0,117950.0,0.31986055]
[1752223463382,0.38159408,117960.0,117950.0,0.31986055]
[1752223464255,0.40309408,117960.0,117950.0,0.31986055]
[1752223464811,0.40309408,117960.0,117950.0,0.31985417]
[1752223466405,0.06309408,117960.0,117950.0,0.31985417]
[1752223467826,0.06309408,117960.0,117950.0,0.16673417]
[1752223468743,0.05292795,117960.0,117950.0,0.16673417]
[1752223469320,0.05292795,117960.0,117950.0,0.1655678]
[1752223469727,0.0209,117940.0,117920.0,0.10601104]
[1752223469904,0.0209,117940.0,117930.0,0.15076]
[1752223470109,0.3609,117940.0,117930.0,0.15076]
[1752223471403,0.3609,117940.0,117930.0,0.15068]
[1752223471547,0.3823,117940.0,117930.0,0.15068]
[1752223472325,0.3823,117940.0,117930.0,0.15168]
[1752223474481,0.3823,117940.0,117930.0,0.15268]
[1752223475793,0.39684085,117940.0,117930.0,0.002]
[1752223476442,0.39684085,117940.0,117930.0,0.001]
[1752223477861,0.48227078,117940.0,117900.0,0.10601104]
[1752223478059,0.3831,117920.0,117910.0,0.14964]
[1752223478333,0.37293201,117920.0,117900.0,0.25557104]
[1752223478469,0.36276379,117920.0,117900.0,0.14956]
[1752223479112,0.36276379,117920.0,117900.0,0.15156]
[1752223479353,0.36276379,117920.0,117910.0,0.001]
[1752223479765,1.24128457,117920.0,117900.0,0.25557104]
[1752223479985,0.43926039,117910.0,117900.0,0.26057104]
[1752223480207,0.80202418,117920.0,117900.0,0.26057104]
[1752223480399,0.43926039,117910.0,117900.0,0.15456]
[1752223480606,0.43926039,117910.0,117900.0,0.17646]
[1752223480724,0.43926039,117910.0,117900.0,0.30357104]
[1752223481122,0.43926039,117910.0,117900.0,0.19256]
[1752223481781,0.43926039,117910.0,117900.0,0.20661932]
[1752223481987,0.43926039,117910.0,117900.0,0.20961932]
[1752223482241,0.43926039,117910.0,117900.0,0.19051932]
[1752223483300,0.43926039,117910.0,117900.0,0.16861932]
[1752223485986,0.43903565,117910.0,117900.0,0.16861932]
[1752223486834,0.36146379,117920.0,117900.0,0.18871932]
[1752223487039,0.43926039,117910.0,117900.0,0.18871932]
[1752223487264,0.43926039,117910.0,117900.0,0.1686163]
[1752223487468,0.0206,117950.0,117910.0,0.0405]
[1752223487730,0.43926039,117930.0,117920.0,0.27625001]
[1752223487910,0.43926039,117930.0,117920.0,0.28818623]
[1752223488112,0.01768518,117960.0,117940.0,0.0411]
[1752223488318,0.43926039,117960.0,117950.0,0.14816]
[1752223488553,0.76909535,117960.0,117950.0,0.1622163]
[1752223489141,0.78662661,117960.0,117950.0,0.1622163]
[1752223489548,1.225887,117960.0,117950.0,0.1622163]
[1752223490747,1.229887,117960.0,117950.0,0.1622163]
[1752223492803,1.231887,117960.0,117950.0,0.17946947]
[1752223494260,1.231887,117960.0,117950.0,0.15826947]
[1752223495996,0.36353126,117960.0,117950.0,0.15826947]
[1752223496194,1.24205204,117960.0,117950.0,0.15826947]
[1752223498674,1.24205204,117960.0,117950.0,0.17946947]
[1752223500150,1.24205204,117960.0,117950.0,0.15826947]
[1752223500788,1.24205204,117960.0,117950.0,0.15826105]
[1752223501224,1.24205204,117960.0,117950.0,0.01010105]
[1752223501415,1.24205204,117960.0,117950.0,0.15702105]
[1752223501966,1.24205204,117960.0,117950.0,0.01010105]
[1752223502198,1.24205204,117960.0,117950.0,0.15690105]
[1752223502409,1.24205204,117960.0,117950.0,0.01010105]
[1752223502620,1.28425204,117960.0,117950.0,0.15678105]
[1752223503368,1.24205204,117960.0,117950.0,0.15678105]
[1752223505913,1.24205204,117960.0,117950.0,0.15678109]
[1752223510195,1.24205204,117960.0,117950.0,0.17788109]
[1752223510400,1.24205204,117960.0,117950.0,0.19878109]
[1752223511397,1.24205204,117960.0,117950.0,0.17788109]
[1752223513441,1.24205204,117960.0,117950.0,0.15678109]
[1752223517024,1.24205204,117960.0,117950.0,0.15492628]
[1752223517233,1.23188723,117960.0,117950.0,0.15492628]
[1752223517571,1.23188723,117960.0,117950.0,0.17662628]
[1752223517985,1.23188723,117960.0,117950.0,0.15284628]
[1752223524498,1.23188723,117960.0,117950.0,0.00824628]
[1752223524723,1.23188723,117960.0,117950.0,0.15276628]
[1752223525375,1.23188723,117960.0,117950.0,0.00824628]
[1752223525575,1.23188723,117960.0,117950.0,0.15260628]
[1752223525848,1.23188723,117960.0,117950.0,0.00824628]
[1752223526006,1.23188723,117960.0,117950.0,0.15252628]
[1752223526214,1.23188723,117960.0,117950.0,0.00824628]
[1752223526422,1.23188723,117960.0,117950.0,0.15248628]
[1752223526643,1.23188723,117960.0,117950.0,0.00824628]
[1752223526881,0.3815,117950.0,117930.0,0.14412]
[1752223527068,0.87852078,117940.0,117930.0,0.14412]
[1752223527235,0.42909398,117940.0,117930.0,0.14412]
[1752223527446,0.86835437,117940.0,117930.0,0.14412]
[1752223527649,0.43926039,117940.0,117930.0,0.27346983]
[1752223527845,0.43926039,117940.0,117930.0,0.27134993]
[1752223528046,0.43926039,117940.0,117930.0,0.27126993]
[1752223530135,0.44026039,117940.0,117930.0,0.27126993]
[1752223531356,0.001,117940.0,117930.0,0.27126993]
[1752223531562,0.44026039,117940.0,117930.0,0.27126993]
[1752223532705,0.001,117940.0,117930.0,0.27126993]
[1752223532915,0.44026039,117940.0,117930.0,0.27126993]
[1752223534398,0.42099028,117940.0,117930.0,0.27126993]
[1752223535922,0.0002,117970.0,117960.0,0.0403]
[1752223536141,0.43946039,117970.0,117960.0,0.26888993]
[1752223537205,0.06805699,117990.0,117960.0,0.26888993]
[1752223537405,0.43926039,117970.0,117960.0,0.22858993]
[1752223537811,0.0002,117990.0,117970.0,0.0416]
[1752223538083,0.0002,117990.0,117980.0,0.0416]
[1752223538315,0.0002,117990.0,117980.0,0.043719]
[1752223538518,0.43946039,117990.0,117980.0,0.043719]
[1752223538956,0.43946039,117990.0,117980.0,0.13444102]
[1752223539144,0.43946039,117990.0,117980.0,0.13232202]
[1752223539709,0.43946039,117990.0,117980.0,0.13332202]
[1752223540351,0.43946039,117990.0,117980.0,0.13432202]
[1752223542131,0.43946039,117990.0,117980.0,0.12902993]
[1752223542348,0.0002,117990.0,117980.0,0.25944207]
[1752223542531,0.0002,117990.0,117980.0,0.28034207]
[1752223542681,0.43946039,117990.0,117980.0,0.28034207]
[1752223544495,0.43946039,117990.0,117980.0,0.28010207]
[1752223545115,0.43946039,117990.0,117980.0,0.25920207]
[1752223546984,0.0002,117990.0,117980.0,0.25920207]
[1752223547240,0.43946039,117990.0,117980.0,0.25920207]
[1752223547458,0.43946039,117990.0,117980.0,0.35490362]
[1752223548588,0.50731738,118000.0,117980.0,0.35490362]
[1752223548589,0.52661738,118000.0,117980.0,0.17400948]
[1752223548972,0.54731738,118000.0,117990.0,0.14564372]
[1752223549110,0.54731738,118000.0,117990.0,0.30294172]
[1752223549307,0.54731738,118000.0,117990.0,0.15682172]
[1752223549511,0.54731738,118000.0,117990.0,0.30298172]
[1752223549769,0.54731738,118000.0,117990.0,0.30286172]
[1752223549984,0.98657777,118000.0,117990.0,0.30286172]
[1752223550444,1.32657777,118000.0,117990.0,0.07139179]
[1752223550647,1.32657777,118000.0,117990.0,0.15722055]
[1752223551072,1.32757777,118000.0,117990.0,0.15722055]
[1752223551282,1.32757777,118000.0,117990.0,0.21743434]
[1752223551599,1.32757777,118000.0,117990.0,0.15722055]
[1752223552009,1.32757777,118000.0,117990.0,0.01118055]
[1752223552183,1.32757777,118000.0,117990.0,0.15714055]
[1752223553207,1.76683816,118000.0,117990.0,0.15674055]
[1752223553449,1.91239816,118000.0,117990.0,0.01118055]
[1752223556004,1.76683816,118000.0,117990.0,0.01118055]
[1752223557176,1.91211816,118000.0,117990.0,0.01118055]
[1752223557412,1.91111816,118000.0,117990.0,0.01118055]
[1752223557619,1.91511816,118000.0,117990.0,0.01118055]
[1752223559217,1.91511816,118000.0,117990.0,0.01118852]
[1752223560061,1.84726117,118000.0,117990.0,0.01118852]
[1752223560231,1.40748078,118000.0,117990.0,0.01118852]
[1752223560935,1.40736078,118000.0,117990.0,0.01118852]
[1752223561661,1.26272078,118000.0,117990.0,0.01118852]
[1752223561871,0.3842,118000.0,117990.0,0.01118852]
[1752223562067,1.21235989,118000.0,117990.0,0.07140231]
[1752223562323,0.88252078,118000.0,117990.0,0.01118852]
[1752223562530,0.88252078,118000.0,117990.0,0.12709007]
[1752223562941,0.88252078,118000.0,117990.0,0.05168852]
[1752223563168,0.88252078,118000.0,117990.0,0.19888852]
[1752223563365,0.88252078,118000.0,117990.0,0.27429007]
[1752223563698,0.87855185,118000.0,117990.0,0.27429007]
[1752223564101,1.21855185,118000.0,117990.0,0.23379007]
[1752223564503,1.23925185,118000.0,117990.0,0.23347007]
[1752223564942,1.25935185,118000.0,117990.0,0.07157339]
[1752223565628,1.25935185,118000.0,117990.0,0.01118852]
[1752223566035,2.09226302,118000.0,117990.0,0.01118852]
[1752223566239,0.39374085,117990.0,117980.0,0.06038487]
[1752223566466,1.42554855,117990.0,117980.0,0.06038487]
[1752223566637,0.4409,117980.0,117970.0,0.05191581]
[1752223566834,1.61290078,117980.0,117970.0,0.05191581]
[1752223567034,1.63893553,117980.0,117970.0,0.05191581]
[1752223567618,1.23893553,117980.0,117970.0,0.05191581]
[1752223569292,1.22877246,117980.0,117970.0,0.05191581]
[1752223569512,0.34,117970.0,117950.0,0.22212155]
[1752223569690,0.87852078,117960.0,117950.0,0.07540155]
[1752223571324,0.87852078,117960.0,117940.0,0.22168155]
[1752223571533,0.43726039,117950.0,117940.0,0.22168155]
[1752223571766,0.43626039,117950.0,117940.0,0.22168155]
[1752223571991,0.43926039,117950.0,117940.0,0.22168155]
[1752223572203,0.45742632,117950.0,117940.0,0.07540155]
[1752223572504,0.45742632,117950.0,117940.0,0.08240155]
[1752223572950,0.45742632,117950.0,117940.0,0.07940155]
[1752223573562,0.45742632,117950.0,117940.0,0.006]
[1752223574926,0.45742632,117950.0,117940.0,0.002]
[1752223575326,0.89668671,117950.0,117940.0,0.002]
[1752223576228,0.89668671,117950.0,117940.0,0.003]
[1752223576474,1.18756671,117950.0,117940.0,0.003]
[1752223577087,1.22656671,117950.0,117940.0,0.003]
[1752223577953,1.54696671,117950.0,117940.0,0.003]
[1752223578097,1.54696671,117950.0,117940.0,0.01872269]
[1752223578433,1.56656671,117950.0,117940.0,0.01872269]
[1752223579396,1.56656671,117950.0,117940.0,0.01672269]
[1752223579615,1.56656671,117950.0,117940.0,0.01572269]
[1752223579811,1.56856671,117950.0,117940.0,0.01572269]
[1752223580185,1.96856671,117950.0,117940.0,0.01572269]
[1752223580616,1.66853749,117950.0,117940.0,0.01572269]
[1752223580765,1.69397054,117950.0,117940.0,0.01572269]
[1752223580973,1.71092672,117950.0,117940.0,0.01572269]
[1752223581503,1.70244856,117950.0,117940.0,0.01572269]
[1752223581931,1.70244849,117950.0,117940.0,0.01572269]
[1752223582063,1.69397054,117950.0,117940.0,0.01572269]
[1752223582276,1.70244849,117950.0,117940.0,0.01572269]
[1752223582478,1.71940554,117950.0,117940.0,0.01572269]
[1752223583008,1.71092774,117950.0,117940.0,0.01572269]
[1752223583156,1.70245001,117950.0,117940.0,0.01572269]
[1752223583766,1.71092767,117950.0,117940.0,0.01572269]
[1752223584442,1.71940547,117950.0,117940.0,0.01572269]
[1752223585658,1.71092767,117950.0,117940.0,0.01572269]
[1752223585937,1.71940547,117950.0,117940.0,0.01572269]
[1752223586971,1.72788342,117950.0,117940.0,0.01572269]
[1752223587171,1.72788335,117950.0,117940.0,0.01572269]
[1752223587765,1.73636144,117950.0,117940.0,0.01572269]
[1752223587999,1.72788392,117950.0,117940.0,0.01572269]
[1752223588762,1.89744729,117950.0,117940.0,0.01572269]
[1752223589834,1.72788392,117950.0,117940.0,0.01572269]
[1752223590391,1.88896963,117950.0,117940.0,0.01572269]
[1752223590560,1.71092817,117950.0,117940.0,0.01572269]
[1752223590772,1.71940619,117950.0,117940.0,0.01572269]
[1752223591009,1.72788428,117950.0,117940.0,0.01572269]
[1752223591243,1.71092817,117950.0,117940.0,0.01572269]
[1752223591444,1.72788428,117950.0,117940.0,0.01572269]
[1752223592013,1.89744765,117950.0,117940.0,0.01572269]
[1752223592346,1.88896985,117950.0,117940.0,0.0072496]
[1752223592516,0.06563507,117940.0,117910.0,0.09600155]
[1752223592716,1.21852078,117920.0,117910.0,0.041]
[1752223592971,1.21852078,117920.0,117910.0,0.0206]
[1752223593144,1.21852078,117920.0,117900.0,0.10985372]
[1752223593346,0.43926039,117910.0,117900.0,0.10985372]
[1752223593553,0.42549174,117910.0,117900.0,0.0416]
[1752223593984,0.42249174,117910.0,117900.0,0.0416]
[1752223594389,0.42049174,117910.0,117900.0,0.0416]
[1752223594595,0.42049174,117910.0,117900.0,0.0426]
[1752223595032,0.42049174,117910.0,117900.0,0.0436]
[1752223596374,0.34,117920.0,117910.0,0.0389]
[1752223596574,0.77926039,117920.0,117910.0,0.12432993]
[1752223596806,0.43926039,117920.0,117910.0,0.12432993]
[1752223596963,0.87852078,117920.0,117910.0,0.12432993]
[1752223598292,0.43926039,117920.0,117910.0,0.12432993]
[1752223598616,0.87852078,117920.0,117910.0,0.12432993]
[1752223599031,0.87852078,117920.0,117910.0,0.12532993]
[1752223600177,0.87952078,117920.0,117910.0,0.12532993]
[1752223602253,0.87952078,117920.0,117910.0,0.26860993]
[1752223602678,0.001,117920.0,117910.0,0.26860993]
[1752223602888,0.87952078,117920.0,117910.0,0.26860993]
[1752223603091,0.44026039,117920.0,117910.0,0.26860993]
[1752223603313,0.001,117920.0,117910.0,0.26860993]
[1752223603625,0.44026039,117920.0,117910.0,0.26860993]
[1752223604460,0.44026039,117920.0,117910.0,0.28434407]
[1752223605142,0.87952078,117920.0,117910.0,0.28434407]
[1752223606046,0.87852078,117920.0,117910.0,0.28674407]
[1752223607178,0.87852078,117920.0,117910.0,0.14106407]
[1752223607388,0.87852078,117920.0,117910.0,0.28634407]
[1752223608126,0.87852078,117920.0,117910.0,0.12136407]
[1752223608315,0.43926039,117920.0,117910.0,0.26664407]
[1752223608562,0.87852078,117920.0,117910.0,0.24744407]
[1752223608795,0.87852078,117920.0,117910.0,0.26814407]
[1752223611701,0.87852078,117920.0,117910.0,0.10216407]
[1752223611910,0.87852078,117920.0,117910.0,0.24696407]
[1752223613342,0.87852078,117920.0,117910.0,0.16153414]
[1752223613741,0.89882078,117920.0,117910.0,0.16153414]
[1752223614351,0.87852078,117920.0,117910.0,0.16153414]
[1752223615993,0.43926039,117920.0,117910.0,0.16153414]
[1752223616246,0.87852078,117920.0,117910.0,0.16153414]
[1752223617532,1.23882078,117920.0,117910.0,0.16153414]
[1752223617812,1.25982078,117920.0,117910.0,0.16153414]
[1752223618340,1.24965247,117920.0,117910.0,0.16153414]
[1752223620279,1.39349247,117920.0,117910.0,0.01673414]
[1752223620923,1.79349247,117920.0,117910.0,0.01673414]
[1752223621330,1.39349247,117920.0,117910.0,0.01673414]
[1752223621538,1.39349247,117920.0,117910.0,0.01573414]
[1752223622008,0.92514,117920.0,117910.0,0.01573414]
[1752223624055,0.95117091,117920.0,117910.0,0.01573414]
[1752223625033,0.80733091,117920.0,117910.0,0.01573414]
[1752223625233,0.95041091,117920.0,117910.0,0.01573414]
[1752223626242,0.97585091,117920.0,117910.0,0.01573414]
[1752223630912,0.98433066,117920.0,117910.0,0.01573414]
[1752223631516,0.97585091,117920.0,117910.0,0.01573414]
[1752223632322,0.97685091,117920.0,117910.0,0.01573414]
[1752223632542,0.98433058,117920.0,117910.0,0.01573414]
[1752223632735,1.08730136,117920.0,117910.0,0.01573414]
[1752223632947,1.11274139,117920.0,117910.0,0.01573414]
[1752223633134,1.09578118,117920.0,117910.0,0.01573414]
[1752223633651,0.70426114,117920.0,117910.0,0.01573414]
[1752223633981,0.68730136,117920.0,117910.0,0.01573414]
[1752223635521,0.34,117910.0,117890.0,0.14296]
[1752223635724,0.88208,117910.0,117890.0,0.05478671]
[1752223638860,0.92228,117910.0,117890.0,0.03548671]
[1752223639577,0.7802,117910.0,117890.0,0.03548671]
[1752223639783,0.922,117910.0,117890.0,0.03548671]
[1752223640283,0.9022,117910.0,117890.0,0.05448671]
[1752223640500,0.74,117910.0,117890.0,0.05448671]
[1752223640743,0.8816,117910.0,117890.0,0.05448671]
[1752223642263,0.88152,117910.0,117890.0,0.05448671]
[1752223645082,0.74,117910.0,117890.0,0.03478671]
[1752223645287,0.02603091,117920.0,117910.0,0.0395]
[1752223645506,0.02804091,117920.0,117910.0,0.05726671]
[1752223645681,0.00201,117920.0,117910.0,0.05726671]
[1752223646443,0.00701,117920.0,117910.0,0.05726671]
[1752223646635,0.00701,117920.0,117910.0,0.05727366]
[1752223647649,0.03198625,117920.0,117910.0,0.04727366]
[1752223647850,0.00701,117920.0,117910.0,0.04727366]
[1752223648411,0.00701,117920.0,117910.0,0.03727366]
[1752223649349,0.40701,117920.0,117910.0,0.03727366]
[1752223650943,0.40701,117920.0,117910.0,0.05807366]
[1752223652207,0.40701,117920.0,117910.0,0.04228]
[1752223652414,0.43233197,117920.0,117910.0,0.05807861]
[1752223652610,0.00701,117920.0,117910.0,0.05807861]
[1752223653301,0.40701,117920.0,117910.0,0.05807861]
[1752223656885,0.40701,117920.0,117910.0,0.03727861]
[1752223657250,0.00196,117920.0,117910.0,0.03727861]
[1752223658268,0.40196,117920.0,117910.0,0.03727861]
[1752223660069,0.40196,117920.0,117910.0,0.01579861]
[1752223660265,0.40196,117920.0,117910.0,0.04073861]
[1752223660467,0.00196,117920.0,117910.0,0.04073861]
[1752223660674,0.36259,117930.0,117910.0,0.06073861]
[1752223660852,0.76259,117930.0,117910.0,0.06073861]
[1752223661272,0.76259,117930.0,117910.0,0.04494]
[1752223661485,0.76259,117930.0,117910.0,0.06073599]
[1752223661887,0.76359,117930.0,117910.0,0.06073599]
[1752223662083,0.76559,117930.0,117910.0,0.06073599]
[1752223662884,0.76559,117930.0,117910.0,0.04073599]
[1752223663892,0.00196,117920.0,117910.0,0.01579599]
[1752223664318,0.7625,117930.0,117910.0,0.03579599]
[1752223664741,0.7615,117930.0,117910.0,0.03884599]
[1752223664948,0.7595,117930.0,117910.0,0.03884599]
[1752223665411,0.002,117920.0,117910.0,0.03884599]
[1752223665624,0.0189,117940.0,117920.0,0.02504]
[1752223665850,0.14056,117940.0,117930.0,0.0199]
[1752223666066,0.54252,117940.0,117930.0,0.03569599]
[1752223666696,0.88252,117940.0,117930.0,0.03569599]
[1752223666900,0.88552,117940.0,117930.0,0.03569599]
[1752223668091,0.88252,117940.0,117930.0,0.01579599]
[1752223668299,0.88652,117940.0,117930.0,0.01579599]
[1752223668510,0.89052,117940.0,117930.0,0.01579599]
[1752223669056,0.49052,117940.0,117930.0,0.01579599]
[1752223671630,0.49052,117940.0,117930.0,0.02093599]
[1752223671833,0.49052,117940.0,117930.0,0.04093599]
[1752223672038,0.34996,117940.0,117930.0,0.04093599]
[1752223672232,0.49052,117940.0,117930.0,0.04093599]
[1752223672798,0.34596,117940.0,117930.0,0.04093599]
[1752223673002,0.34196,117940.0,117930.0,0.04093599]
[1752223673196,0.343,117940.0,117930.0,0.06143599]
[1752223673427,0.48352,117940.0,117930.0,0.06143599]
[1752223673634,0.48352,117940.0,117930.0,0.04093599]
[1752223673828,0.48352,117940.0,117930.0,0.06143599]
[1752223674197,0.343,117940.0,117930.0,0.06143599]
[1752223674692,0.343,117940.0,117930.0,0.14686592]
[1752223677191,0.345,117940.0,117930.0,0.14686592]
[1752223678347,0.342,117940.0,117930.0,0.14686592]
[1752223678746,0.344,117940.0,117930.0,0.12636592]
[1752223679292,0.344,117940.0,117930.0,0.14616592]
[1752223679893,0.344,117940.0,117930.0,0.12636592]
[1752223683991,0.34580069,117940.0,117930.0,0.12636592]
[1752223688190,0.34580069,117940.0,117930.0,0.12634717]
[1752223689130,0.34580069,117940.0,117930.0,0.12120717]
[1752223690962,0.34580069,117940.0,117930.0,0.01577936]
[1752223691176,0.36490069,117940.0,117930.0,0.15621936]
[1752223695046,0.34580069,117940.0,117930.0,0.17651936]